Workbook

Sheet VWAP Strategy
A1: Date | B1: Open | C1: High | D1: Low | E1: Close | F1: Volume | G1: Avg Daily Price | H1: Price * Volume | I1: Cumulative P*V (Last 10 Days) | J1: Cumulative Volume (Last 10 Days) | K1: VWAP | L1: Signal | M1: Trade | N1: Net Position | O1: Trade Price | P1: Returns | R1: PERFORMANCE METRICS
A2: 2013-01-04 | B2: 754.8 | C2: 758.9 | D2: 749.05 | E2: 751.65 | F2: 981841 | G2: =AVERAGE(C2:E2) -> 753.2 | H2: =G2*F2 -> 739522641.2 | R2: Positive Returns | S2: =SUMIF(P:P,">0") -> 3.775539418
A3: 2013-01-07 | B3: 755 | C3: 759.55 | D3: 746.55 | E3: 751.85 | F3: 1007244 | G3: 752.65 | H3: =G3*F3 -> 758102196.6 | R3: Negative Returns | S3: =SUMIF(P:P,"<0") -> -3.554441991
A4: 2013-01-08 | B4: 751.85 | C4: 752.2 | D4: 733 | E4: 734.85 | F4: 1674588 | G4: 740.0166667 | H4: 1239223030 | R4: Positive Trades | S4: =COUNTIF(P:P,">0") -> 107
A5: 2013-01-09 | B5: 735.5 | C5: 739.4 | D5: 711 | E5: 714.4 | F5: 3237446 | G5: 721.6 | H5: 2336141034 | R5: Negative Trades | S5: =COUNTIF(P:P,"<0") -> 214
A6: 2013-01-10 | B6: 716 | C6: 718.5 | D6: 696.5 | E6: 699.8 | F6: 3024089 | G6: 704.9333333 | H6: 2131781139 | R6: Hit Ratio | S6: =S4/(S4+S5) -> 0.3333333333
A7: 2013-01-11 | B7: 704 | C7: 720.1 | D7: 700.4 | E7: 714.2 | F7: 2159204 | G7: 711.5666667 | H7: 1536417593 | R7: Average Returns | S7: =AVERAGE(P:P) -> 0.0001117782746
A8: 2013-01-14 | B8: 732 | C8: 754 | D8: 727 | E8: 750.05 | F8: 4513845 | G8: 743.6833333 | H8: 3356871296 | R8: Total Returns | S8: =SUM(P:P) -> 0.2210974271
A9: 2013-01-15 | B9: 745 | C9: 796.4 | D9: 744.65 | E9: 788.55 | F9: 5455136 | G9: 776.5333333 | H9: 4236094942
A10: 2013-01-16 | B10: 798.45 | C10: 798.45 | D10: 769.35 | E10: 779.85 | F10: 5163807 | G10: 782.55 | H10: 4040937168 | N10: 0 | O10: =E10 -> 779.85
A11: 2013-01-17 | B11: 796 | C11: 799.6 | D11: 772.25 | E11: 791.4 | F11: 3972504 | G11: 787.75 | H11: 3129340026 | I11: =SUM(H2:H11) -> 2.350443106e+10 | J11: =SUM(F2:F11) -> 31189704 | K11: =I11/J11 -> 753.5958361 | L11: =IF(E11>K11,"BUY",IF(E11<K11,"SELL",0)) -> BUY | M11: =IF(L11<>L10,L11,0) -> BUY | N11: =IF(M11="BUY",1,IF(M11="SELL",-1,N10)) -> 1 | O11: =IF(M11<>0,E11,O10) -> 791.4 | P11: 0 | R11: Comment
A12: 2013-01-18 | B12: 800 | C12: 829 | D12: 793 | E12: 802.2 | F12: 3630542 | G12: 808.0666667 | H12: 2933719972 | I12: =SUM(H3:H12) -> 2.56986284e+10 | J12: =SUM(F3:F12) -> 33838405 | K12: =I12/J12 -> 759.4515284 | L12: BUY | M12: =IF(L12<>L11,L12,0) -> 0 | N12: 1 | O12: =IF(M12<>0,E12,O11) -> 791.4 | P12: =IF(M12="BUY",(O11-O12)/O11,IF(M12="SELL",(O12-O11)/O11,0)) -> 0 | R12: We don't include Open prices in the average daily price, because they are pre-market
A13: 2013-01-21 | B13: 802.2 | C13: 802.2 | D13: 778.65 | E13: 780.7 | F13: 2577425 | G13: 787.1833333 | H13: 2028906003 | I13: =SUM(H4:H13) -> 2.69694322e+10 | J13: 35408586 | K13: 761.6636316 | L13: BUY | M13: 0 | N13: 1 | O13: 791.4 | P13: 0 | R13: and do not represent transaction prices from the days trading session
A14: 2013-01-22 | B14: 792.2 | C14: 792.2 | D14: 770.9 | E14: 779.4 | F14: 2173527 | G14: 780.8333333 | H14: 1697162332 | I14: 2.74273715e+10 | J14: 35907525 | K14: 763.8335281 | L14: BUY | M14: 0 | N14: 1 | O14: 791.4 | P14: 0
A15: 2013-01-23 | B15: 772.25 | C15: 791.95 | D15: 767.9 | E15: 770.65 | F15: 2544752 | G15: 776.8333333 | H15: 1976848179 | I15: 2.706807865e+10 | J15: 35214831 | K15: 768.6556454 | L15: BUY | M15: 0 | N15: 1 | O15: 791.4 | P15: 0 | R15: VWAP CALCULATION
A16: 2013-01-24 | B16: 761 | C16: 765 | D16: 744.7 | E16: 757.85 | F16: 3787495 | G16: 755.85 | H16: 2862778096 | I16: 2.779907561e+10 | J16: 35978237 | K16: 772.6636413 | L16: SELL | M16: SELL | N16: -1 | O16: 757.85 | P16: -0.04239322719 | R16: VWAP = Cumulative Price * Volume / Cumulative Volume
A17: 2013-01-25 | B17: 757.5 | C17: 765.5 | D17: 741.15 | E17: 756.2 | F17: 1504143 | G17: 754.2833333 | H17: 1134549996 | I17: 2.739720801e+10 | J17: 35323176 | K17: 775.6156471 | L17: SELL | M17: 0 | N17: -1 | O17: 757.85 | P17: 0
A18: 2013-01-28 | B18: 750 | C18: 759.7 | D18: 740.15 | E18: 743.3 | F18: 2422199 | G18: 747.7166667 | H18: 1811118562 | I18: 2.585145528e+10 | J18: 33231530 | K18: 777.9195022 | L18: SELL | M18: 0 | N18: -1 | O18: 757.85 | P18: 0 | R18: TRADING RULE
A19: 2013-01-29 | B19: 749.5 | C19: 757.95 | D19: 727.7 | E19: 741.75 | F19: 3268598 | G19: 742.4666667 | H19: 2426825062 | I19: 2.40421854e+10 | J19: 31044992 | K19: 774.4303943 | L19: SELL | M19: 0 | N19: -1 | O19: 757.85 | P19: 0 | R19: IF today's close > VWAP price THEN buy
A20: 2013-01-30 | B20: 734 | C20: 739.8 | D20: 712.15 | E20: 736.2 | F20: 2736663 | G20: 729.3833333 | H20: 1996076381 | I20: 2.199732461e+10 | J20: 28617848 | K20: 768.6575388 | L20: SELL | M20: 0 | N20: -1 | O20: 757.85 | P20: 0 | R20: IF today's close < VWAP price THEN sell
A21: 2013-01-31 | B21: 734.35 | C21: 762.8 | D21: 720 | E21: 746.15 | F21: 1689006 | G21: 742.9833333 | H21: 1254903308 | I21: 2.012288789e+10 | J21: 26334350 | K21: 764.1307984 | L21: SELL | M21: 0 | N21: -1 | O21: 757.85 | P21: 0
A22: 2013-02-01 | B22: 755 | C22: 762.65 | D22: 735 | E22: 738.4 | F22: 2369594 | G22: 745.35 | H22: 1766176888 | I22: 1.895534481e+10 | J22: 25073402 | K22: 755.994133 | L22: SELL | M22: 0 | N22: -1 | O22: 757.85 | P22: 0 | R22: INITIAL RETURN
A23: 2013-02-04 | B23: 744 | C23: 756.9 | D23: 735.5 | E23: 752.95 | F23: 1488838 | G23: 748.45 | H23: 1114320801 | I23: 1.80407596e+10 | J23: 23984815 | K23: 752.1742238 | L23: BUY | M23: BUY | N23: 1 | O23: 752.95 | P23: 0.006465659431 | R23: Don't count the returns of the very first trade setting up our postion
A24: 2013-02-05 | B24: 752.95 | C24: 753.9 | D24: 732.5 | E24: 738.7 | F24: 1358306 | G24: 741.7 | H24: 1007455560 | I24: 1.735105283e+10 | J24: 23169594 | K24: 748.8716821 | L24: SELL | M24: SELL | N24: -1 | O24: 738.7 | P24: -0.01892555947
A25: 2013-02-06 | B25: 735 | C25: 735 | D25: 716.6 | E25: 723.5 | F25: 2303559 | G25: 725.0333333 | H25: 1670157060 | I25: 1.704436171e+10 | J25: 22928401 | K25: 743.3733261 | L25: SELL | M25: 0 | N25: -1 | O25: 738.7 | P25: 0 | R25: CLOSE OUT FINAL POSITION
A26: 2013-02-07 | B26: 728 | C26: 732.5 | D26: 721.15 | E26: 729.7 | F26: 79487 | G26: 727.7833333 | H26: 57849313.82 | I26: 1.423943293e+10 | J26: 19220393 | K26: 740.8502486 | L26: SELL | M26: 0 | N26: -1 | O26: 738.7 | P26: 0 | R26: At the very bottom in RED we close out the net position for performance measurement
A27: 2013-02-08 | B27: 729 | C27: 734.75 | D27: 708.15 | E27: 724.15 | F27: 2085172 | G27: 722.35 | H27: 1506223994 | I27: 1.461110693e+10 | J27: 19801422 | K27: 737.8817001 | L27: SELL | M27: 0 | N27: -1 | O27: 738.7 | P27: 0
A28: 2013-02-11 | B28: 725 | C28: 741.95 | D28: 721.05 | E28: 735.15 | F28: 1502947 | G28: 732.7166667 | H28: 1101234316 | I28: 1.390122268e+10 | J28: 18882170 | K28: 736.2089571 | L28: SELL | M28: 0 | N28: -1 | O28: 738.7 | P28: 0
A29: 2013-02-12 | B29: 739.9 | C29: 743.7 | D29: 728.1 | E29: 732.3 | F29: 1168687 | G29: 734.7 | H29: 858634338.9 | I29: 1.233303196e+10 | J29: 16782259 | K29: 734.8850927 | L29: SELL | M29: 0 | N29: -1 | O29: 738.7 | P29: 0
A30: 2013-02-13 | B30: 737.95 | C30: 747.95 | D30: 735 | E30: 742.7 | F30: 1206578 | G30: 741.8833333 | H30: 895140108.6 | I30: 1.123209569e+10 | J30: 15252174 | K30: 736.4258819 | L30: BUY | M30: BUY | N30: 1 | O30: 742.7 | P30: -0.005414918099
A31: 2013-02-14 | B31: 750 | C31: 750 | D31: 738.55 | E31: 746.15 | F31: 978241 | G31: 744.9 | H31: 728691720.9 | I31: 1.07058841e+10 | J31: 14541409 | K31: 736.2343018 | L31: BUY | M31: 0 | N31: 1 | O31: 742.7 | P31: 0
A32: 2013-02-15 | B32: 747.25 | C32: 764.95 | D32: 742.2 | E32: 758.15 | F32: 830245 | G32: 755.1 | H32: 626917999.5 | I32: 9566625214 | J32: 13002060 | K32: 735.7776547 | L32: BUY | M32: 0 | N32: 1 | O32: 742.7 | P32: 0
A33: 2013-02-18 | B33: 764.9 | C33: 767.95 | D33: 752.55 | E33: 758.65 | F33: 1264145 | G33: 759.7166667 | H33: 960392025.6 | I33: 9412696438 | J33: 12777367 | K33: 736.6694905 | L33: BUY | M33: 0 | N33: 1 | O33: 742.7 | P33: 0
A34: 2013-02-19 | B34: 760 | C34: 766.95 | D34: 755.5 | E34: 758.8 | F34: 907403 | G34: 760.4166667 | H34: 690004364.6 | I34: 9095245242 | J34: 12326464 | K34: 737.8632869 | L34: BUY | M34: 0 | N34: 1 | O34: 742.7 | P34: 0
A35: 2013-02-20 | B35: 754.9 | C35: 759.5 | D35: 745.8 | E35: 750.55 | F35: 1107940 | G35: 751.95 | H35: 833115483 | I35: 8258203665 | J35: 11130845 | K35: 741.9206417 | L35: BUY | M35: 0 | N35: 1 | O35: 742.7 | P35: 0
A36: 2013-02-21 | B36: 757 | C36: 763.7 | D36: 753.8 | E36: 757.25 | F36: 1071730 | G36: 758.25 | H36: 812639272.5 | I36: 9012993624 | J36: 12123088 | K36: 743.4569166 | L36: BUY | M36: 0 | N36: 1 | O36: 742.7 | P36: 0
A37: 2013-02-22 | B37: 759 | C37: 765 | D37: 751.25 | E37: 762.1 | F37: 926526 | G37: 759.45 | H37: 703650170.7 | I37: 8210419800 | J37: 10964442 | K37: 748.8224025 | L37: BUY | M37: 0 | N37: 1 | O37: 742.7 | P37: 0
A38: 2013-02-25 | B38: 756 | C38: 770.7 | D38: 752.1 | E38: 765.35 | F38: 2038029 | G38: 762.7166667 | H38: 1554438685 | I38: 8663624170 | J38: 11499524 | K38: 753.3898072 | L38: BUY | M38: 0 | N38: 1 | O38: 742.7 | P38: 0
A39: 2013-02-26 | B39: 769.8 | C39: 769.8 | D39: 761.25 | E39: 766.25 | F39: 1336492 | G39: 765.7666667 | H39: 1023441024 | I39: 8828430855 | J39: 11667329 | K39: 756.6796869 | L39: BUY | M39: 0 | N39: 1 | O39: 742.7 | P39: 0
A40: 2013-02-27 | B40: 767.1 | C40: 778.55 | D40: 746.15 | E40: 761.8 | F40: 1507967 | G40: 762.1666667 | H40: 1149322182 | I40: 9082612928 | J40: 11968718 | K40: 758.8626391 | L40: BUY | M40: 0 | N40: 1 | O40: 742.7 | P40: 0
A41: 2013-02-28 | B41: 762 | C41: 769 | D41: 755 | E41: 763.2 | F41: 2026676 | G41: 762.4 | H41: 1545137782 | I41: 9899058989 | J41: 13017153 | K41: 760.4626749 | L41: BUY | M41: 0 | N41: 1 | O41: 742.7 | P41: 0
A42: 2013-03-01 | B42: 769 | C42: 774 | D42: 764.15 | E42: 768.75 | F42: 1377371 | G42: 768.9666667 | H42: 1059152387 | I42: 1.033129338e+10 | J42: 13564279 | K42: 761.6544437 | L42: BUY | M42: 0 | N42: 1 | O42: 742.7 | P42: 0
A43: 2013-03-04 | B43: 768 | C43: 770 | D43: 757 | E43: 763.9 | F43: 1026803 | G43: 763.6333333 | H43: 784100997.6 | I43: 1.015500235e+10 | J43: 13326937 | K43: 761.9907221 | L43: BUY | M43: 0 | N43: 1 | O43: 742.7 | P43: 0
A44: 2013-03-05 | B44: 765 | C44: 766.95 | D44: 760.15 | E44: 762.6 | F44: 643656 | G44: 763.2333333 | H44: 491259714.4 | I44: 9956257698 | J44: 13063190 | K44: 762.1612867 | L44: BUY | M44: 0 | N44: 1 | O44: 742.7 | P44: 0
A45: 2013-03-06 | B45: 767.6 | C45: 770 | D45: 760.3 | E45: 762.7 | F45: 1507870 | G45: 764.3333333 | H45: 1152515303 | I45: 1.027565752e+10 | J45: 13463120 | K45: 763.2448882 | L45: SELL | M45: SELL | N45: -1 | O45: 762.7 | P45: 0.02692877339
A46: 2013-03-07 | B46: 763 | C46: 778.5 | D46: 763 | E46: 768.7 | F46: 1728866 | G46: 770.0666667 | H46: 1331342078 | I46: 1.079436032e+10 | J46: 14120256 | K46: 764.4592509 | L46: BUY | M46: BUY | N46: 1 | O46: 768.7 | P46: -0.007866789039
A47: 2013-03-08 | B47: 763.7 | C47: 784.45 | D47: 760 | E47: 780.05 | F47: 2293937 | G47: 774.8333333 | H47: 1777418852 | I47: 1.186812901e+10 | J47: 15487667 | K47: 766.2954663 | L47: BUY | M47: 0 | N47: 1 | O47: 768.7 | P47: 0
A48: 2013-03-11 | B48: 780.05 | C48: 794.9 | D48: 771.95 | E48: 791.6 | F48: 1607015 | G48: 786.15 | H48: 1263354842 | I48: 1.157704516e+10 | J48: 15056653 | K48: 768.8989819 | L48: BUY | M48: 0 | N48: 1 | O48: 768.7 | P48: 0
A49: 2013-03-12 | B49: 800 | C49: 800 | D49: 792 | E49: 796.95 | F49: 1255488 | G49: 796.3166667 | H49: 999766019.2 | I49: 1.155337016e+10 | J49: 14975649 | K49: 771.4770931 | L49: BUY | M49: 0 | N49: 1 | O49: 768.7 | P49: 0
A50: 2013-03-13 | B50: 796.95 | C50: 820 | D50: 791.15 | E50: 818 | F50: 3027217 | G50: 809.7166667 | H50: 2451188059 | I50: 1.285523603e+10 | J50: 16494899 | K50: 779.3461502 | L50: BUY | M50: 0 | N50: 1 | O50: 768.7 | P50: 0
A51: 2013-03-14 | B51: 821.5 | C51: 831.95 | D51: 815.8 | E51: 829 | F51: 1544428 | G51: 825.5833333 | H51: 1275054016 | I51: 1.258515227e+10 | J51: 16012651 | K51: 785.9505755 | L51: BUY | M51: 0 | N51: 1 | O51: 768.7 | P51: 0
A52: 2013-03-15 | B52: 834 | C52: 845.9 | D52: 830 | E52: 840.7 | F52: 2087397 | G52: 838.8666667 | H52: 1751047763 | I52: 1.327704764e+10 | J52: 16722677 | K52: 793.9546787 | L52: BUY | M52: 0 | N52: 1 | O52: 768.7 | P52: 0
A53: 2013-03-18 | B53: 845 | C53: 845 | D53: 820.5 | E53: 825.85 | F53: 1862277 | G53: 830.45 | H53: 1546527935 | I53: 1.403947458e+10 | J53: 17558151 | K53: 799.5986925 | L53: BUY | M53: 0 | N53: 1 | O53: 768.7 | P53: 0
A54: 2013-03-19 | B54: 805.25 | C54: 834.45 | D54: 805.25 | E54: 820.9 | F54: 2358312 | G54: 820.2 | H54: 1934287502 | I54: 1.548250237e+10 | J54: 19272807 | K54: 803.3340639 | L54: BUY | M54: 0 | N54: 1 | O54: 768.7 | P54: 0
A55: 2013-03-20 | B55: 814.9 | C55: 833.8 | D55: 806.15 | E55: 827.6 | F55: 1655055 | G55: 822.5166667 | H55: 1361310322 | I55: 1.569129739e+10 | J55: 19419992 | K55: 807.9971088 | L55: BUY | M55: 0 | N55: 1 | O55: 768.7 | P55: 0
A56: 2013-03-21 | B56: 830 | C56: 833 | D56: 822.1 | E56: 828.65 | F56: 847482 | G56: 827.9166667 | H56: 701644472.5 | I56: 1.506159978e+10 | J56: 18538608 | K56: 812.4450219 | L56: BUY | M56: 0 | N56: 1 | O56: 768.7 | P56: 0
A57: 2013-03-22 | B57: 824.1 | C57: 836.8 | D57: 818 | E57: 829.8 | F57: 2758791 | G57: 828.2 | H57: 2284830706 | I57: 1.556901164e+10 | J57: 19003462 | K57: 819.2723851 | L57: BUY | M57: 0 | N57: 1 | O57: 768.7 | P57: 0
A58: 2013-03-25 | B58: 830 | C58: 836 | D58: 822.3 | E58: 825.05 | F58: 998903 | G58: 827.7833333 | H58: 826875255 | I58: 1.513253205e+10 | J58: 18395350 | K58: 822.6281125 | L58: BUY | M58: 0 | N58: 1 | O58: 768.7 | P58: 0
A59: 2013-03-26 | B59: 824 | C59: 829.3 | D59: 808.55 | E59: 811.95 | F59: 1721633 | G59: 816.6 | H59: 1405885508 | I59: 1.553865154e+10 | J59: 18861495 | K59: 823.8292637 | L59: SELL | M59: SELL | N59: -1 | O59: 811.95 | P59: 0.05626382204
A60: 2013-03-27 | B60: 808.6 | C60: 816.1 | D60: 797.15 | E60: 800 | F60: 1548580 | G60: 804.4166667 | H60: 1245703562 | I60: 1.433316704e+10 | J60: 17382858 | K60: 824.5575636 | L60: SELL | M60: 0 | N60: -1 | O60: 811.95 | P60: 0
A61: 2013-03-28 | B61: 800 | C61: 807.25 | D61: 777.3 | E61: 780.65 | F61: 3541523 | G61: 788.4 | H61: 2792136733 | I61: 1.585024976e+10 | J61: 19379953 | K61: 817.8683281 | L61: SELL | M61: 0 | N61: -1 | O61: 811.95 | P61: 0
A62: 2013-03-29 | B62: 786.35 | C62: 809.8 | D62: 782.1 | E62: 807.8 | F62: 2890716 | G62: 799.9 | H62: 2312283728 | I62: 1.641148572e+10 | J62: 20183272 | K62: 813.1231509 | L62: SELL | M62: 0 | N62: -1 | O62: 811.95 | P62: 0
A63: 2013-04-01 | B63: 817 | C63: 817 | D63: 799.25 | E63: 803.35 | F63: 1500918 | G63: 806.5333333 | H63: 1210540398 | I63: 1.607549819e+10 | J63: 19821913 | K63: 810.9963043 | L63: SELL | M63: 0 | N63: -1 | O63: 811.95 | P63: 0
A64: 2013-04-02 | B64: 808.9 | C64: 808.9 | D64: 792.15 | E64: 796.05 | F64: 1851183 | G64: 799.0333333 | H64: 1479156923 | I64: 1.562036761e+10 | J64: 19314784 | K64: 808.7259794 | L64: SELL | M64: 0 | N64: -1 | O64: 811.95 | P64: 0
A65: 2013-04-03 | B65: 790 | C65: 809 | D65: 781.15 | E65: 798.05 | F65: 1512279 | G65: 796.0666667 | H65: 1203874903 | I65: 1.546293219e+10 | J65: 19172008 | K65: 806.5369151 | L65: SELL | M65: 0 | N65: -1 | O65: 811.95 | P65: 0
A66: 2013-04-04 | B66: 796 | C66: 807.5 | D66: 790 | E66: 799.45 | F66: 2247219 | G66: =AVERAGE(C66:E66) -> 798.9833333 | H66: 1795490527 | I66: 1.655677824e+10 | J66: 20571745 | K66: 804.8310069 | L66: SELL | M66: 0 | N66: -1 | O66: 811.95 | P66: 0
A67: 2013-04-05 | B67: 802 | C67: 807.9 | D67: 788.25 | E67: 791.6 | F67: 1509006 | G67: 795.9166667 | H67: =G67*F67 -> 1201043026 | I67: 1.547299056e+10 | J67: 19321960 | K67: 800.7981883 | L67: SELL | M67: 0 | N67: -1 | O67: 811.95 | P67: 0
A68: 2013-04-08 | B68: 791 | C68: 800 | D68: 790.1 | E68: 798.1 | F68: 1434941 | G68: 796.0666667 | H68: 1142308699 | I68: 1.578842401e+10 | J68: 19757998 | K68: 799.0902725 | L68: SELL | M68: 0 | N68: -1 | O68: 811.95 | P68: 0
A69: 2013-04-09 | B69: 800 | C69: 823.8 | D69: 787.25 | E69: 820.85 | F69: 4202458 | G69: 810.6333333 | H69: 3406652537 | I69: 1.778919103e+10 | J69: 22238823 | K69: 799.9160313 | L69: BUY | M69: BUY | N69: 1 | O69: 820.85 | P69: -0.01096126609
A70: 2013-04-10 | B70: 822 | C70: 834.9 | D70: 819.05 | E70: 821.7 | F70: 2145476 | G70: 825.2166667 | H70: 1770482553 | I70: 1.831397003e+10 | J70: 22835719 | K70: 801.9878869 | L70: BUY | M70: 0 | N70: 1 | O70: 820.85 | P70: 0
A71: 2013-04-11 | B71: 819 | C71: 828 | D71: 811.85 | E71: 815.1 | F71: 1905479 | G71: 818.3166667 | H71: 1559285224 | I71: 1.708111852e+10 | J71: 21199675 | K71: 805.7254895 | L71: BUY | M71: 0 | N71: 1 | O71: 820.85 | P71: 0
A72: 2013-04-12 | B72: 810 | C72: 825 | D72: 800.75 | E72: 811.95 | F72: 3473852 | G72: 812.5666667 | H72: 2822736340 | I72: 1.759157113e+10 | J72: 21782811 | K72: 807.5895773 | L72: BUY | M72: 0 | N72: 1 | O72: 820.85 | P72: 0
A73: 2013-04-15 | B73: 825 | C73: 832.65 | D73: 787 | E73: 789.5 | F73: 6008493 | G73: 803.05 | H73: 4825120304 | I73: 2.120615103e+10 | J73: 26290386 | K73: 806.6123881 | L73: SELL | M73: SELL | N73: -1 | O73: 789.5 | P73: -0.03819211793
A74: 2013-04-16 | B74: 795 | C74: 799 | D74: 780.25 | E74: 785 | F74: 3553745 | G74: 788.0833333 | H74: 2800647205 | I74: 2.252764132e+10 | J74: 27992948 | K74: 804.7613033 | L74: SELL | M74: 0 | N74: -1 | O74: 789.5 | P74: 0
A75: 2013-04-17 | B75: 789.1 | C75: 793.65 | D75: 781 | E75: 785.95 | F75: 2375558 | G75: 786.8666667 | H75: 1869247405 | I75: 2.319301382e+10 | J75: 28856227 | K75: 803.7438096 | L75: =IF(E75>K75,"BUY",IF(E75<K75,"SELL",0)) -> SELL | M75: 0 | N75: =IF(M75="BUY",1,IF(M75="SELL",-1,N74)) -> -1 | O75: 789.5 | P75: 0
A76: 2013-04-18 | B76: 788.05 | C76: 792 | D76: 777.5 | E76: 780.2 | F76: 2153034 | G76: 783.2333333 | H76: 1686327997 | I76: =SUM(H67:H76) -> 2.308385129e+10 | J76: =SUM(F67:F76) -> 28762042 | K76: =I76/J76 -> 802.580404 | L76: SELL | M76: =IF(L76<>L75,L76,0) -> 0 | N76: -1 | O76: =IF(M76<>0,E76,O75) -> 789.5 | P76: =IF(M76="BUY",(O75-O76)/O75,IF(M76="SELL",(O76-O75)/O75,0)) -> 0
A77: 2013-04-19 | B77: 786 | C77: 791 | D77: 780.2 | E77: 785.1 | F77: 1256274 | G77: 785.4333333 | H77: 986719475.4 | I77: 2.286952774e+10 | J77: 28509310 | K77: 802.1775251 | L77: SELL | M77: 0 | N77: -1 | O77: 789.5 | P77: 0
A78: 2013-04-22 | B78: 785.95 | C78: 789.9 | D78: 781.05 | E78: 787.3 | F78: 1310617 | G78: 786.0833333 | H78: 1030254180 | I78: 2.275747322e+10 | J78: 28384986 | K78: 801.7433308 | L78: SELL | M78: 0 | N78: -1 | O78: 789.5 | P78: 0
A79: 2013-04-23 | B79: 780 | C79: 783.95 | D79: 765 | E79: 770.3 | F79: 1200191 | G79: 773.0833333 | H79: 927847658.9 | I79: 2.027866834e+10 | J79: 25382719 | K79: 798.9163155 | L79: SELL | M79: 0 | N79: -1 | O79: 789.5 | P79: 0
A80: 2013-04-24 | B80: 775.1 | C80: 775.25 | D80: 755.6 | E80: 759.75 | F80: 2311482 | G80: 763.5333333 | H80: 1764893556 | I80: 2.027307935e+10 | J80: 25548725 | K80: 793.5064996 | L80: SELL | M80: 0 | N80: -1 | O80: 789.5 | P80: 0
A81: 2013-04-25 | B81: 765 | C81: 772.8 | D81: 762.55 | E81: 765.4 | F81: 1845112 | G81: 766.9166667 | H81: 1415047145 | I81: 2.012884127e+10 | J81: 25488358 | K81: 789.7268732 | L81: SELL | M81: 0 | N81: -1 | O81: 789.5 | P81: 0
A82: 2013-04-26 | B82: 761.25 | C82: 771.4 | D82: 754.1 | E82: 766.8 | F82: 1208280 | G82: 764.1 | H82: 923246748 | I82: 1.822935167e+10 | J82: 23222786 | K82: 784.9769478 | L82: SELL | M82: 0 | N82: -1 | O82: 789.5 | P82: 0
A83: 2013-04-29 | B83: 774.85 | C83: 774.85 | D83: 756.8 | E83: 761 | F83: 1448014 | G83: 764.2166667 | H83: 1106596432 | I83: 1.45108278e+10 | J83: 18662307 | K83: 777.5473741 | L83: SELL | M83: 0 | N83: -1 | O83: 789.5 | P83: 0
A84: 2013-04-30 | B84: 750 | C84: 768 | D84: 740.15 | E84: 765.75 | F84: 2185615 | G84: 757.9666667 | H84: 1656623316 | I84: 1.336680391e+10 | J84: 17294177 | K84: 772.9077778 | L84: SELL | M84: 0 | N84: -1 | O84: 789.5 | P84: 0
A85: 2013-05-01 | B85: 767.95 | C85: 770.9 | D85: 759.2 | E85: 767.1 | F85: 1290436 | G85: 765.7333333 | H85: 988129859.7 | I85: 1.248568637e+10 | J85: 16209055 | K85: 770.2908262 | L85: SELL | M85: 0 | N85: -1 | O85: 789.5 | P85: 0
A86: 2013-05-02 | B86: 757 | C86: 762.6 | D86: 735 | E86: 741.4 | F86: 2133576 | G86: 746.3333333 | H86: 1592358888 | I86: 1.239171726e+10 | J86: 16189597 | K86: 765.4123361 | L86: SELL | M86: 0 | N86: -1 | O86: 789.5 | P86: 0
A87: 2013-05-03 | B87: 760 | C87: 843 | D87: 745 | E87: 770.25 | F87: 1163907 | G87: 786.0833333 | H87: 914927894.2 | I87: 1.231992568e+10 | J87: 16097230 | K87: 765.3444523 | L87: BUY | M87: BUY | N87: 1 | O87: 770.25 | P87: 0.02438252058
A88: 2013-05-06 | B88: 775 | C88: 779 | D88: 753.9 | E88: 756.3 | F88: 675644 | G88: 763.0666667 | H88: 515561414.9 | I88: 1.180523291e+10 | J88: 15462257 | K88: 763.4870455 | L88: SELL | M88: SELL | N88: -1 | O88: 756.3 | P88: -0.01811100292
A89: 2013-05-07 | B89: 757 | C89: 767.95 | D89: 751.1 | E89: 759.45 | F89: 1370038 | G89: 759.5 | H89: 1040543861 | I89: 1.191792912e+10 | J89: 15632104 | K89: 762.4008333 | L89: SELL | M89: 0 | N89: -1 | O89: 756.3 | P89: 0
A90: 2013-05-08 | B90: 765.1 | C90: 773.2 | D90: 761.45 | E90: 765.6 | F90: 660726 | G90: 766.75 | H90: 506611660.5 | I90: 1.065964722e+10 | J90: 13981348 | K90: 762.4191329 | L90: BUY | M90: BUY | N90: 1 | O90: 765.6 | P90: -0.01229670766
A91: 2013-05-09 | B91: 766 | C91: 777 | D91: 755 | E91: 763.85 | F91: 1013498 | G91: 765.2833333 | H91: 775613127.8 | I91: 1.00202132e+10 | J91: 13149734 | K91: 762.0088135 | L91: BUY | M91: 0 | N91: 1 | O91: 765.6 | P91: 0
A92: 2013-05-10 | B92: 774.95 | C92: 774.95 | D92: 734.1 | E92: 745.75 | F92: 1861025 | G92: 751.6 | H92: 1398746390 | I92: 1.049571284e+10 | J92: 13802479 | K92: 760.4223013 | L92: SELL | M92: SELL | N92: -1 | O92: 745.75 | P92: -0.02592737722
A93: 2013-05-13 | B93: 746 | C93: 746 | D93: 726.3 | E93: 735.1 | F93: 1599590 | G93: 735.8 | H93: 1176978322 | I93: 1.056609473e+10 | J93: 13954055 | K93: 757.2060404 | L93: SELL | M93: 0 | N93: -1 | O93: 745.75 | P93: 0
A94: 2013-05-14 | B94: 730 | C94: 733 | D94: 716.3 | E94: 721.5 | F94: 1964633 | G94: 723.6 | H94: 1421608439 | I94: 1.033107986e+10 | J94: 13733073 | K94: 752.2773568 | L94: SELL | M94: 0 | N94: -1 | O94: 745.75 | P94: 0
A95: 2013-05-15 | B95: 729 | C95: 732.3 | D95: 716.15 | E95: 730 | F95: 1199046 | G95: 726.15 | H95: 870687252.9 | I95: 1.021363725e+10 | J95: 13641683 | K95: 748.708004 | L95: SELL | M95: 0 | N95: -1 | O95: 745.75 | P95: 0
A96: 2013-05-16 | B96: 710 | C96: 725.9 | D96: 685.25 | E96: 718.7 | F96: 1337546 | G96: 709.95 | H96: 949590782.7 | I96: 9570869145 | J96: 12845653 | K96: 745.0667665 | L96: SELL | M96: 0 | N96: -1 | O96: 745.75 | P96: 0
A97: 2013-05-17 | B97: 725 | C97: 730 | D97: 712.7 | E97: 717.6 | F97: 1442714 | G97: 720.1 | H97: 1038898351 | I97: 9694839602 | J97: 13124460 | K97: 738.6848375 | L97: SELL | M97: 0 | N97: -1 | O97: 745.75 | P97: 0
A98: 2013-05-20 | B98: 708 | C98: 714 | D98: 691.55 | E98: 699.55 | F98: 1148683 | G98: 701.7 | H98: 806030861.1 | I98: 9985309048 | J98: 13597499 | K98: 734.3489452 | L98: SELL | M98: 0 | N98: -1 | O98: 745.75 | P98: 0
A99: 2013-05-21 | B99: 708 | C99: 744.8 | D99: 704.1 | E99: 738 | F99: 1844732 | G99: 728.9666667 | H99: 1344748137 | I99: 1.028951332e+10 | J99: 14072193 | K99: 731.1947274 | L99: BUY | M99: BUY | N99: 1 | O99: 738 | P99: 0.01039222259
A100: 2013-05-22 | B100: 735 | C100: 749.95 | D100: 727.2 | E100: 741.85 | F100: 3441936 | G100: 739.6666667 | H100: 2545885328 | I100: 1.232878699e+10 | J100: 16853403 | K100: 731.5310143 | L100: BUY | M100: 0 | N100: 1 | O100: 738 | P100: 0
A101: 2013-05-23 | B101: 749.8 | C101: 753.5 | D101: 735.5 | E101: 750.8 | F101: 1239687 | G101: 746.6 | H101: 925550314.2 | I101: 1.247872418e+10 | J101: 17079592 | K101: 730.6219129 | L101: BUY | M101: 0 | N101: 1 | O101: 738 | P101: 0
A102: 2013-05-24 | B102: 748.5 | C102: 752.9 | D102: 738 | E102: 743.05 | F102: 1663830 | G102: 744.65 | H102: 1238971010 | I102: 1.23189488e+10 | J102: 16882397 | K102: 729.6919269 | L102: BUY | M102: 0 | N102: 1 | O102: 738 | P102: 0
A103: 2013-05-27 | B103: 743.05 | C103: 751.95 | D103: 734.7 | E103: 739.2 | F103: 1568456 | G103: 741.95 | H103: 1163715929 | I103: 1.23056864e+10 | J103: 16851263 | K103: 730.253062 | L103: BUY | M103: 0 | N103: 1 | O103: 738 | P103: 0
A104: 2013-05-28 | B104: 737.8 | C104: 759.5 | D104: 736.3 | E104: 754.25 | F104: 1384665 | G104: 750.0166667 | H104: 1038521828 | I104: 1.192259979e+10 | J104: 16271295 | K104: 732.7382236 | L104: BUY | M104: 0 | N104: 1 | O104: 738 | P104: 0
A105: 2013-05-29 | B105: 760 | C105: 769 | D105: 745.1 | E105: 765.45 | F105: 842217 | G105: 759.85 | H105: 639958587.5 | I105: 1.169187113e+10 | J105: 15914466 | K105: 734.6693963 | L105: BUY | M105: 0 | N105: 1 | O105: 738 | P105: 0
A106: 2013-05-30 | B106: 765.45 | C106: 769.7 | D106: 755.2 | E106: 765.35 | F106: 684105 | G106: 763.4166667 | H106: 522257158.8 | I106: 1.12645375e+10 | J106: 15261025 | K106: 738.1245692 | L106: BUY | M106: 0 | N106: 1 | O106: 738 | P106: 0
A107: 2013-05-31 | B107: 749.9 | C107: 757.8 | D107: 736 | E107: 753.25 | F107: 867461 | G107: 749.0166667 | H107: 649742746.7 | I107: 1.08753819e+10 | J107: 14685772 | K107: 740.5386587 | L107: BUY | M107: 0 | N107: 1 | O107: 738 | P107: 0
A108: 2013-06-03 | B108: 754 | C108: 762 | D108: 747 | E108: 750.2 | F108: 1121111 | G108: 753.0666667 | H108: 844271323.7 | I108: 1.091362236e+10 | J108: 14658200 | K108: 744.5404185 | L108: BUY | M108: 0 | N108: 1 | O108: 738 | P108: 0
A109: 2013-06-04 | B109: 752 | C109: 758.55 | D109: 731 | E109: 733.05 | F109: 2433700 | G109: 740.8666667 | H109: 1803047207 | I109: 1.137192143e+10 | J109: 15247168 | K109: 745.8382719 | L109: SELL | M109: SELL | N109: -1 | O109: 733.05 | P109: -0.006707317073
A110: 2013-06-05 | B110: 730 | C110: 753 | D110: 730 | E110: 750.5 | F110: 898018 | G110: 744.5 | H110: 668574401 | I110: 9494610505 | J110: 12703250 | K110: 747.4158585 | L110: BUY | M110: BUY | N110: 1 | O110: 750.5 | P110: -0.0238046518
A111: 2013-06-06 | B111: 761.8 | C111: 763.3 | D111: 751 | E111: 759.1 | F111: 1618512 | G111: 757.8 | H111: 1226508394 | I111: 9795568584 | J111: 13082075 | K111: 748.7778953 | L111: BUY | M111: 0 | N111: 1 | O111: 750.5 | P111: 0
A112: 2013-06-07 | B112: 763.35 | C112: 787.1 | D112: 758 | E112: 781 | F112: 1775246 | G112: 775.3666667 | H112: 1376466574 | I112: 9933064148 | J112: 13193491 | K112: 752.8761075 | L112: BUY | M112: 0 | N112: 1 | O112: 750.5 | P112: 0
A113: 2013-06-10 | B113: 756.65 | C113: 777.7 | D113: 756.65 | E113: 766.1 | F113: 1321488 | G113: 766.8166667 | H113: 1013339023 | I113: 9782687242 | J113: 12946523 | K113: 755.6227446 | L113: BUY | M113: 0 | N113: 1 | O113: 750.5 | P113: 0
A114: 2013-06-11 | B114: 777.1 | C114: 779.95 | D114: 767.3 | E114: 774.8 | F114: 1164408 | G114: 774.0166667 | H114: 901271198.8 | I114: 9645436613 | J114: 12726266 | K114: 757.915685 | L114: BUY | M114: 0 | N114: 1 | O114: 750.5 | P114: 0
A115: 2013-06-12 | B115: 777 | C115: 784.8 | D115: 763.7 | E115: 775.3 | F115: 764460 | G115: 774.6 | H115: 592150716 | I115: 9597628742 | J115: 12648509 | K115: 758.7952653 | L115: BUY | M115: 0 | N115: 1 | O115: 750.5 | P115: 0
A116: 2013-06-13 | B116: 775.3 | C116: 788.9 | D116: 772.25 | E116: 783.2 | F116: 1112836 | G116: 781.45 | H116: 869625692.2 | I116: 9944997275 | J116: 13077240 | K116: 760.4813612 | L116: BUY | M116: 0 | N116: 1 | O116: 750.5 | P116: 0
A117: 2013-06-14 | B117: 792.9 | C117: 794 | D117: 784.6 | E117: 787.7 | F117: 953714 | G117: 788.7666667 | H117: 752257812.7 | I117: 1.004751234e+10 | J117: 13163493 | K117: 763.2861841 | L117: BUY | M117: 0 | N117: 1 | O117: 750.5 | P117: 0
A118: 2013-06-17 | B118: 785 | C118: 786.5 | D118: 773.3 | E118: 778.65 | F118: 734162 | G118: 779.4833333 | H118: 572267043 | I118: 9775508061 | J118: 12776544 | K118: 765.113638 | L118: BUY | M118: 0 | N118: 1 | O118: 750.5 | P118: 0
A119: 2013-06-18 | B119: 770 | C119: 788.95 | D119: 769.85 | E119: 786.3 | F119: 1479762 | G119: 781.7 | H119: 1156729955 | I119: 9129190809 | J119: 11822606 | K119: 772.1809227 | L119: BUY | M119: 0 | N119: 1 | O119: 750.5 | P119: 0
A120: 2013-06-19 | B120: 786.3 | C120: 788.5 | D120: 767.7 | E120: 773.45 | F120: 1888755 | G120: 776.55 | H120: 1466712695 | I120: 9927329104 | J120: 12813343 | K120: 774.7649543 | L120: SELL | M120: SELL | N120: -1 | O120: 773.45 | P120: 0.03057961359
A121: 2013-06-20 | B121: 775.8 | C121: 775.8 | D121: 756.1 | E121: 758.5 | F121: 1018661 | G121: 763.4666667 | H121: 777713718.1 | I121: 9478534428 | J121: 12213492 | K121: 776.0707935 | L121: SELL | M121: 0 | N121: -1 | O121: 773.45 | P121: 0
A122: 2013-06-21 | B122: 758.45 | C122: 767.15 | D122: 757.6 | E122: 764.75 | F122: 576562 | G122: 763.1666667 | H122: 440012899.7 | I122: 8542080754 | J122: 11014808 | K122: 775.50882 | L122: SELL | M122: 0 | N122: -1 | O122: 773.45 | P122: 0
A123: 2013-06-24 | B123: 765 | C123: 765 | D123: 749 | E123: 753.8 | F123: 1307331 | G123: 755.9333333 | H123: 988255080.6 | I123: 8516996812 | J123: 11000651 | K123: 774.2266173 | L123: SELL | M123: 0 | N123: -1 | O123: 773.45 | P123: 0
A124: 2013-06-25 | B124: 755 | C124: 759.9 | D124: 741.25 | E124: 751 | F124: 1658258 | G124: 750.7166667 | H124: 1244881918 | I124: 8860607531 | J124: 11494501 | K124: 770.8562147 | L124: SELL | M124: 0 | N124: -1 | O124: 773.45 | P124: 0
A125: 2013-06-26 | B125: 750 | C125: 750 | D125: 725.75 | E125: 732 | F125: 1703872 | G125: 735.9166667 | H125: 1253907803 | I125: 9522364618 | J125: 12433913 | K125: 765.838125 | L125: SELL | M125: 0 | N125: -1 | O125: 773.45 | P125: 0
A126: 2013-06-27 | B126: 734.8 | C126: 746 | D126: 730.85 | E126: 743.8 | F126: 1471775 | G126: 740.2166667 | H126: 1089432385 | I126: 9742171310 | J126: 12792852 | K126: 761.5324019 | L126: SELL | M126: 0 | N126: -1 | O126: 773.45 | P126: 0
A127: 2013-06-28 | B127: 748.8 | C127: 748.9 | D127: 737.1 | E127: 739 | F127: 1082798 | G127: 741.6666667 | H127: 803075183.3 | I127: 9792988681 | J127: 12921936 | K127: 757.8576988 | L127: SELL | M127: 0 | N127: -1 | O127: 773.45 | P127: 0
A128: 2013-07-01 | B128: 736.5 | C128: 761.9 | D128: 735.85 | E128: 759.15 | F128: 1380452 | G128: 752.3 | H128: 1038514040 | I128: 1.025923568e+10 | J128: 13568226 | K128: 756.1221104 | L128: BUY | M128: BUY | N128: 1 | O128: 759.15 | P128: 0.01848859008
A129: 2013-07-02 | B129: 761.4 | C129: 767.4 | D129: 748.95 | E129: 764.6 | F129: 1076467 | G129: 760.3166667 | H129: 818455801.2 | I129: 9920961523 | J129: 13164931 | K129: 753.5900889 | L129: BUY | M129: 0 | N129: 1 | O129: 759.15 | P129: 0
A130: 2013-07-03 | B130: 772 | C130: 779 | D130: 769.65 | E130: 776.8 | F130: 1093782 | G130: =AVERAGE(C130:E130) -> 775.15 | H130: 847845117.3 | I130: 9302093945 | J130: 12369958 | K130: 751.9907461 | L130: BUY | M130: 0 | N130: 1 | O130: 759.15 | P130: 0
A131: 2013-07-04 | B131: 780 | C131: 784 | D131: 770.75 | E131: 774.45 | F131: 918333 | G131: 776.4 | H131: =G131*F131 -> 712993741.2 | I131: 9237373968 | J131: 12269630 | K131: 752.8649167 | L131: BUY | M131: 0 | N131: 1 | O131: 759.15 | P131: 0
A132: 2013-07-05 | B132: 779.8 | C132: 794 | D132: 779.8 | E132: 791.7 | F132: 1362888 | G132: 788.5 | H132: 1074637188 | I132: 9871998257 | J132: 13055956 | K132: 756.1298657 | L132: BUY | M132: 0 | N132: 1 | O132: 759.15 | P132: 0
A133: 2013-07-08 | B133: 792 | C133: 792 | D133: 769.55 | E133: 774.65 | F133: 2772943 | G133: 778.7333333 | H133: 2159383146 | I133: 1.104312632e+10 | J133: 14521568 | K133: 760.4637682 | L133: BUY | M133: 0 | N133: 1 | O133: 759.15 | P133: 0
A134: 2013-07-09 | B134: 778 | C134: 784.7 | D134: 770.25 | E134: 774.65 | F134: 1416921 | G134: 776.5333333 | H134: 1100286387 | I134: 1.089853079e+10 | J134: 14280231 | K134: 763.1900906 | L134: BUY | M134: 0 | N134: 1 | O134: 759.15 | P134: 0
A135: 2013-07-10 | B135: 771 | C135: 784.9 | D135: 765.25 | E135: 782.1 | F135: 1897768 | G135: 777.4166667 | H135: 1475356473 | I135: 1.111997946e+10 | J135: 14474127 | K135: 768.2659867 | L135: BUY | M135: 0 | N135: 1 | O135: 759.15 | P135: 0
A136: 2013-07-11 | B136: 795 | C136: 838.5 | D136: 795 | E136: 833.65 | F136: 9567726 | G136: 822.3833333 | H136: 7868338400 | I136: 1.789888548e+10 | J136: 22570078 | K136: 793.0360487 | L136: BUY | M136: 0 | N136: 1 | O136: 759.15 | P136: 0
A137: 2013-07-12 | B137: 831.45 | C137: 834.7 | D137: 823.25 | E137: 826.7 | F137: 1513962 | G137: 828.2166667 | H137: 1253888561 | I137: 1.834969885e+10 | J137: 23001242 | K137: 797.7699141 | L137: BUY | M137: 0 | N137: 1 | O137: 759.15 | P137: 0
A138: 2013-07-15 | B138: 826.7 | C138: 834.55 | D138: 825 | E138: 827.25 | F138: 1171031 | G138: 828.9333333 | H138: 970706630.3 | I138: 1.828189144e+10 | J138: 22791821 | K138: 802.1250889 | L138: BUY | M138: 0 | N138: 1 | O138: 759.15 | P138: 0
A139: 2013-07-16 | B139: 832 | C139: 844.8 | D139: 829.6 | E139: 843 | F139: 1471860 | G139: 839.1333333 | H139: 1235086788 | I139: 1.869852243e+10 | J139: 23187214 | K139: 806.4152266 | L139: =IF(E139>K139,"BUY",IF(E139<K139,"SELL",0)) -> BUY | M139: 0 | N139: =IF(M139="BUY",1,IF(M139="SELL",-1,N138)) -> 1 | O139: 759.15 | P139: 0
A140: 2013-07-17 | B140: 843 | C140: 846 | D140: 832.5 | E140: 843.7 | F140: 681441 | G140: 840.7333333 | H140: 572910163.4 | I140: =SUM(H131:H140) -> 1.842358748e+10 | J140: =SUM(F131:F140) -> 22774873 | K140: =I140/J140 -> 808.9435879 | L140: BUY | M140: =IF(L140<>L139,L140,0) -> 0 | N140: 1 | O140: =IF(M140<>0,E140,O139) -> 759.15 | P140: =IF(M140="BUY",(O139-O140)/O139,IF(M140="SELL",(O140-O139)/O139,0)) -> 0
A141: 2013-07-18 | B141: 850 | C141: 850 | D141: 835.1 | E141: 839.3 | F141: 947236 | G141: 841.4666667 | H141: 797067519.5 | I141: 1.850766126e+10 | J141: 22803776 | K141: 811.6051156 | L141: BUY | M141: 0 | N141: 1 | O141: 759.15 | P141: 0
A142: 2013-07-19 | B142: 842.4 | C142: 851.6 | D142: 840.4 | E142: 849.25 | F142: 1383245 | G142: 847.0833333 | H142: 1171723785 | I142: 1.860474785e+10 | J142: 22824133 | K142: 815.1349212 | L142: BUY | M142: 0 | N142: 1 | O142: 759.15 | P142: 0
A143: 2013-07-22 | B143: 855 | C143: 859.8 | D143: 846.2 | E143: 849.15 | F143: 1053301 | G143: 851.7166667 | H143: 897114016.7 | I143: 1.734247872e+10 | J143: 21104491 | K143: 821.7435201 | L143: BUY | M143: 0 | N143: 1 | O143: 759.15 | P143: 0
A144: 2013-07-23 | B144: 851 | C144: 857.95 | D144: 847 | E144: 854.45 | F144: 2179614 | G144: 853.1333333 | H144: 1859501357 | I144: 1.810169369e+10 | J144: 21867184 | K144: 827.8017734 | L144: BUY | M144: 0 | N144: 1 | O144: 759.15 | P144: 0
A145: 2013-07-24 | B145: 855 | C145: 855 | D145: 849 | E145: 850 | F145: 2665952 | G145: 851.3333333 | H145: 2269613803 | I145: 1.889595102e+10 | J145: 22635368 | K145: 834.7976063 | L145: BUY | M145: 0 | N145: 1 | O145: 759.15 | P145: 0
A146: 2013-07-25 | B146: 849 | C146: 850 | D146: 835 | E146: 839.8 | F146: 641713 | G146: 841.6 | H146: 540065660.8 | I146: 1.156767829e+10 | J146: 13709355 | K146: 843.7799069 | L146: SELL | M146: SELL | N146: -1 | O146: 839.8 | P146: 0.106237239
A147: 2013-07-26 | B147: 843 | C147: 848.45 | D147: 837 | E147: 838.3 | F147: 1413881 | G147: 841.25 | H147: 1189427391 | I147: 1.150321712e+10 | J147: 13609274 | K147: 845.2484031 | L147: SELL | M147: 0 | N147: -1 | O147: 839.8 | P147: 0
A148: 2013-07-29 | B148: 841 | C148: 844.5 | D148: 828.55 | E148: 832.05 | F148: 640776 | G148: 835.0333333 | H148: 535069319.2 | I148: 1.10675798e+10 | J148: 13079019 | K148: 846.2087106 | L148: SELL | M148: 0 | N148: -1 | O148: 839.8 | P148: 0
A149: 2013-07-30 | B149: 836 | C149: 872 | D149: 835.85 | E149: 868.8 | F149: 2791967 | G149: 858.8833333 | H149: 2397973924 | I149: 1.223046694e+10 | J149: 14399126 | K149: 849.3895351 | L149: BUY | M149: BUY | N149: 1 | O149: 868.8 | P149: -0.03453203144
A150: 2013-07-31 | B150: 872 | C150: 882.4 | D150: 865.65 | E150: 877.85 | F150: 1456475 | G150: 875.3 | H150: 1274852568 | I150: 1.293240934e+10 | J150: 15174160 | K150: 852.2652551 | L150: BUY | M150: 0 | N150: 1 | O150: 868.8 | P150: 0
A151: 2013-08-01 | B151: 880 | C151: 883.5 | D151: 860.65 | E151: 864.7 | F151: 1218867 | G151: 869.6166667 | H151: 1059947058 | I151: 1.319528888e+10 | J151: 15445791 | K151: 854.296739 | L151: BUY | M151: 0 | N151: 1 | O151: 868.8 | P151: 0
A152: 2013-08-02 | B152: 861.15 | C152: 883.7 | D152: 846.1 | E152: 879.85 | F152: 2129993 | G152: 869.8833333 | H152: 1852845411 | I152: 1.387641051e+10 | J152: 16192539 | K152: 856.963229 | L152: BUY | M152: 0 | N152: 1 | O152: 868.8 | P152: 0
A153: 2013-08-05 | B153: 885 | C153: 885 | D153: 861.4 | E153: 864.5 | F153: 772597 | G153: 870.3 | H153: 672391169.1 | I153: 1.365168766e+10 | J153: 15911835 | K153: 857.958096 | L153: BUY | M153: 0 | N153: 1 | O153: 868.8 | P153: 0
A154: 2013-08-06 | B154: 862 | C154: 873 | D154: 854.8 | E154: 858.15 | F154: 2010124 | G154: 861.9833333 | H154: 1732693386 | I154: 1.352487969e+10 | J154: 15742345 | K154: 859.1400893 | L154: SELL | M154: SELL | N154: -1 | O154: 858.15 | P154: -0.01225828729
A155: 2013-08-07 | B155: 856.9 | C155: 856.9 | D155: 846.2 | E155: 853.45 | F155: 1139046 | G155: 852.1833333 | H155: 970676017.1 | I155: 1.22259419e+10 | J155: 14215439 | K155: 860.0467353 | L155: SELL | M155: 0 | N155: -1 | O155: 858.15 | P155: 0
A156: 2013-08-08 | B156: 857 | C156: 862.9 | D156: 838 | E156: 854.4 | F156: 1294953 | G156: 851.7666667 | H156: 1102997800 | I156: 1.278887404e+10 | J156: 14868679 | K156: 860.1217393 | L156: SELL | M156: 0 | N156: -1 | O156: 858.15 | P156: 0
A157: 2013-08-09 | B157: 857 | C157: 862.55 | D157: 848.8 | E157: 854.1 | F157: 659549 | G157: 855.15 | H157: 564013327.4 | I157: 1.216345998e+10 | J157: 14114347 | K157: 861.7798598 | L157: SELL | M157: 0 | N157: -1 | O157: 858.15 | P157: 0
A158: 2013-08-12 | B158: 850.1 | C158: 861 | D158: 844 | E158: 850.2 | F158: 866598 | G158: 851.7333333 | H158: 738110403.2 | I158: 1.236650106e+10 | J158: 14340169 | K158: 862.3678746 | L158: SELL | M158: 0 | N158: -1 | O158: 858.15 | P158: 0
A159: 2013-08-13 | B159: 853 | C159: 875.8 | D159: 850 | E159: 871.1 | F159: 1444458 | G159: 865.6333333 | H159: 1250370993 | I159: 1.121889813e+10 | J159: 12992660 | K159: 863.4796979 | L159: BUY | M159: BUY | N159: 1 | O159: 871.1 | P159: -0.01509060188
A160: 2013-08-14 | B160: 874 | C160: 880.9 | D160: 867.3 | E160: 872.05 | F160: 1074267 | G160: 873.4166667 | H160: 938282702.2 | I160: 1.088232827e+10 | J160: 12610452 | K160: 862.9609999 | L160: BUY | M160: 0 | N160: 1 | O160: 871.1 | P160: 0
A161: 2013-08-15 | B161: 869 | C161: 879.9 | D161: 863 | E161: 868.95 | F161: 873198 | G161: 870.6166667 | H161: 760220732.1 | I161: 1.058260194e+10 | J161: 12264783 | K161: 862.844613 | L161: BUY | M161: 0 | N161: 1 | O161: 871.1 | P161: 0
A162: 2013-08-16 | B162: 860 | C162: 875.45 | D162: 857.05 | E162: 870.4 | F162: 524915 | G162: 867.6333333 | H162: 455433751.2 | I162: 9185190282 | J162: 10659705 | K162: 861.6739658 | L162: BUY | M162: 0 | N162: 1 | O162: 871.1 | P162: 0
A163: 2013-08-19 | B163: 870 | C163: 881.9 | D163: 865 | E163: 870.7 | F163: 1325237 | G163: 872.5333333 | H163: 1156313457 | I163: 9669112570 | J163: 11212345 | K163: 862.363098 | L163: BUY | M163: 0 | N163: 1 | O163: 871.1 | P163: 0
A164: 2013-08-20 | B164: 872 | C164: 881.5 | D164: 866.3 | E164: 871.2 | F164: 1189984 | G164: 873 | H164: 1038856032 | I164: 8975275216 | J164: 10392205 | K164: 863.654558 | L164: BUY | M164: 0 | N164: 1 | O164: 871.1 | P164: 0
A165: 2013-08-21 | B165: 874 | C165: 879 | D165: 860.25 | E165: 876.5 | F165: 2102214 | G165: 871.9166667 | H165: 1832955424 | I165: 9837554622 | J165: 11355373 | K165: 866.3347846 | L165: BUY | M165: 0 | N165: 1 | O165: 871.1 | P165: 0
A166: 2013-08-22 | B166: 872.1 | C166: 873 | D166: 851 | E166: 856.05 | F166: 638257 | G166: 860.0166667 | H166: 548911657.6 | I166: 9283468480 | J166: 10698677 | K166: 867.7211659 | L166: SELL | M166: SELL | N166: -1 | O166: 856.05 | P166: -0.01727700608
A167: 2013-08-23 | B167: 862.8 | C167: 862.8 | D167: 840.1 | E167: 845.65 | F167: 779285 | G167: 849.5166667 | H167: 662015595.6 | I167: 9381470748 | J167: 10818413 | K167: 867.1762437 | L167: SELL | M167: 0 | N167: -1 | O167: 856.05 | P167: 0
A168: 2013-08-26 | B168: 840 | C168: 847.7 | D168: 830.2 | E168: 843.75 | F168: 1223937 | G168: 840.55 | H168: 1028780245 | I168: 9672140590 | J168: 11175752 | K168: 865.4576972 | L168: SELL | M168: 0 | N168: -1 | O168: 856.05 | P168: 0
A169: 2013-08-27 | B169: 842 | C169: 861 | D169: 840 | E169: 858.4 | F169: 1372742 | G169: 853.1333333 | H169: 1171131958 | I169: 9592901555 | J169: 11104036 | K169: 863.9112441 | L169: SELL | M169: 0 | N169: -1 | O169: 856.05 | P169: 0
A170: 2013-08-28 | B170: 867.5 | C170: 867.5 | D170: 841.5 | E170: 844.1 | F170: 1379400 | G170: 851.0333333 | H170: 1173915380 | I170: 9828534233 | J170: 11409169 | K170: 861.4592555 | L170: SELL | M170: 0 | N170: -1 | O170: 856.05 | P170: 0
A171: 2013-08-29 | B171: 850 | C171: 851.5 | D171: 835.1 | E171: 837.3 | F171: 1388985 | G171: 841.3 | H171: 1168553080 | I171: 1.023686658e+10 | J171: 11924956 | K171: 858.4406166 | L171: SELL | M171: 0 | N171: -1 | O171: 856.05 | P171: 0
A172: 2013-08-30 | B172: 838 | C172: 857.5 | D172: 838 | E172: 855.35 | F172: 1143989 | G172: 850.2833333 | H172: 972714780.2 | I172: 1.075414761e+10 | J172: 12544030 | K172: 857.312013 | L172: SELL | M172: 0 | N172: -1 | O172: 856.05 | P172: 0
A173: 2013-09-02 | B173: 858 | C173: 874.9 | D173: 856 | E173: 871.35 | F173: 1242118 | G173: 867.4166667 | H173: 1077433855 | I173: 1.067526801e+10 | J173: 12460911 | K173: 856.7004458 | L173: BUY | M173: BUY | N173: 1 | O173: 871.35 | P173: -0.0178727878
A174: 2013-09-03 | B174: 864 | C174: 882.9 | D174: 858.9 | E174: 879.05 | F174: 2094739 | G174: 873.6166667 | H174: 1829998903 | I174: 1.146641088e+10 | J174: 13365666 | K174: 857.9004502 | L174: BUY | M174: 0 | N174: 1 | O174: 871.35 | P174: 0
A175: 2013-09-04 | B175: 882 | C175: 882.5 | D175: 871.35 | E175: 874.7 | F175: 1469079 | G175: 876.1833333 | H175: 1287182535 | I175: 1.092063799e+10 | J175: 12732531 | K175: 857.6957708 | L175: BUY | M175: 0 | N175: 1 | O175: 871.35 | P175: 0
A176: 2013-09-05 | B176: 871.35 | C176: 889 | D176: 870.7 | E176: 879.75 | F176: 1174705 | G176: 879.8166667 | H176: 1033525037 | I176: 1.140525137e+10 | J176: 13268979 | K176: 859.5424991 | L176: BUY | M176: 0 | N176: 1 | O176: 871.35 | P176: 0
A177: 2013-09-06 | B177: 883 | C177: 899 | D177: 880.3 | E177: 895.35 | F177: 1535519 | G177: 891.55 | H177: 1368991964 | I177: 1.211222774e+10 | J177: 14025213 | K177: 863.6038354 | L177: BUY | M177: 0 | N177: 1 | O177: 871.35 | P177: 0
A178: 2013-09-09 | B178: 900 | C178: 919.4 | D178: 899 | E178: 914.8 | F178: 2780197 | G178: 911.0666667 | H178: 2532944813 | I178: 1.361639231e+10 | J178: 15581473 | K178: 873.8835094 | L178: BUY | M178: 0 | N178: 1 | O178: 871.35 | P178: 0
A179: 2013-09-10 | B179: 908 | C179: 913.45 | D179: 864.5 | E179: 895.4 | F179: 1167132 | G179: 891.1166667 | H179: 1040050777 | I179: 1.348531113e+10 | J179: 15375863 | K179: 877.044178 | L179: BUY | M179: 0 | N179: 1 | O179: 871.35 | P179: 0
A180: 2013-09-11 | B180: 900.1 | C180: 918.75 | D180: 900.1 | E180: 913.8 | F180: 1503989 | G180: 910.8833333 | H180: 1369958514 | I180: 1.368135426e+10 | J180: 15500452 | K180: 882.6422778 | L180: BUY | M180: 0 | N180: 1 | O180: 871.35 | P180: 0
A181: 2013-09-12 | B181: 917 | C181: 921.9 | D181: 906.7 | E181: 912.25 | F181: 1209554 | G181: 913.6166667 | H181: 1105068694 | I181: 1.361786987e+10 | J181: 15321021 | K181: 888.835664 | L181: BUY | M181: 0 | N181: 1 | O181: 871.35 | P181: 0
A182: 2013-09-13 | B182: 912 | C182: 958 | D182: 910.3 | E182: 953.95 | F182: 2498592 | G182: 940.75 | H182: 2350550424 | I182: 1.499570552e+10 | J182: 16675624 | K182: 899.2590332 | L182: BUY | M182: 0 | N182: 1 | O182: 871.35 | P182: 0
A183: 2013-09-16 | B183: 956 | C183: 960 | D183: 930 | E183: 935.25 | F183: 2015533 | G183: 941.75 | H183: 1898128203 | I183: 1.581639986e+10 | J183: 17449039 | K183: 906.4338652 | L183: BUY | M183: 0 | N183: 1 | O183: 871.35 | P183: 0
A184: 2013-09-17 | B184: 940 | C184: 945.3 | D184: 927.8 | E184: 931.35 | F184: 1663618 | G184: 934.8166667 | H184: 1555177833 | I184: 1.55415788e+10 | J184: 17017918 | K184: 913.247954 | L184: BUY | M184: 0 | N184: 1 | O184: 871.35 | P184: 0
A185: 2013-09-18 | B185: 933.1 | C185: 937.9 | D185: 925 | E185: 931.95 | F185: 1369392 | G185: 931.6166667 | H185: 1275748410 | I185: 1.553014467e+10 | J185: 16918231 | K185: 917.9532228 | L185: BUY | M185: 0 | N185: 1 | O185: 871.35 | P185: 0
A186: 2013-09-19 | B186: 935 | C186: 941.45 | D186: 922 | E186: 927.6 | F186: 1711645 | G186: 930.35 | H186: 1592428926 | I186: 1.608904856e+10 | J186: 17455171 | K186: 921.7353734 | L186: BUY | M186: 0 | N186: 1 | O186: 871.35 | P186: 0
A187: 2013-09-20 | B187: 925.25 | C187: 930.3 | D187: 914.1 | E187: 919.65 | F187: 1260857 | G187: 921.35 | H187: 1161690597 | I187: 1.588174719e+10 | J187: 17180509 | K187: 924.4049284 | L187: SELL | M187: SELL | N187: -1 | O187: 919.65 | P187: 0.05543122741
A188: 2013-09-23 | B188: 925 | C188: 937.25 | D188: 914.9 | E188: 920.35 | F188: 1685097 | G188: 924.1666667 | H188: 1557310478 | I188: 1.490611286e+10 | J188: 16085409 | K188: 926.6853491 | L188: SELL | M188: 0 | N188: -1 | O188: 919.65 | P188: 0
A189: 2013-09-24 | B189: 925 | C189: 930 | D189: 915.15 | E189: 926.95 | F189: 3780462 | G189: 924.0333333 | H189: 3493272903 | I189: 1.735933498e+10 | J189: 18698739 | K189: 928.3692864 | L189: SELL | M189: 0 | N189: -1 | O189: 919.65 | P189: 0
A190: 2013-09-25 | B190: 927 | C190: 966 | D190: 922 | E190: 961.6 | F190: 1663078 | G190: 949.8666667 | H190: 1579702356 | I190: 1.756907882e+10 | J190: 18857828 | K190: 931.6597237 | L190: BUY | M190: BUY | N190: 1 | O190: 961.6 | P190: -0.04561517969
A191: 2013-09-26 | B191: 966.75 | C191: 975 | D191: 953 | E191: 955.8 | F191: 1070478 | G191: 961.2666667 | H191: 1029014819 | I191: 1.749302495e+10 | J191: 18718752 | K191: 934.5187622 | L191: BUY | M191: 0 | N191: 1 | O191: 961.6 | P191: 0
A192: 2013-09-27 | B192: 950 | C192: 965.95 | D192: 946.15 | E192: 950.25 | F192: 1105832 | G192: 954.1166667 | H192: 1055092742 | I192: 1.619756727e+10 | J192: 17325992 | K192: 934.8709884 | L192: BUY | M192: 0 | N192: 1 | O192: 961.6 | P192: 0
A193: 2013-09-30 | B193: 950 | C193: 967.9 | D193: 950 | E193: 959.65 | F193: 919480 | G193: 959.1833333 | H193: 881949891.3 | I193: 1.518138896e+10 | J193: 16229939 | K193: 935.3940859 | L193: BUY | M193: 0 | N193: 1 | O193: 961.6 | P193: 0
A194: 2013-10-01 | B194: 960 | C194: 966 | D194: 938.4 | E194: 948.8 | F194: 986470 | G194: =AVERAGE(C194:E194) -> 951.0666667 | H194: 938198734.7 | I194: 1.456440986e+10 | J194: 15552791 | K194: 936.449918 | L194: BUY | M194: 0 | N194: 1 | O194: 961.6 | P194: 0
A195: 2013-10-02 | B195: 944.05 | C195: 954.7 | D195: 869 | E195: 942.6 | F195: 1347998 | G195: 922.1 | H195: =G195*F195 -> 1242988956 | I195: 1.45316504e+10 | J195: 15531397 | K195: 935.630607 | L195: BUY | M195: 0 | N195: 1 | O195: 961.6 | P195: 0
A196: 2013-10-03 | B196: 942.6 | C196: 953.95 | D196: 929.05 | E196: 940.9 | F196: 1532685 | G196: 941.3 | H196: 1442716390 | I196: 1.438193787e+10 | J196: 15352437 | K196: 936.7853369 | L196: BUY | M196: 0 | N196: 1 | O196: 961.6 | P196: 0
A197: 2013-10-04 | B197: 942.65 | C197: 955.8 | D197: 939.1 | E197: 950.7 | F197: 1304451 | G197: 948.5333333 | H197: 1237315255 | I197: 1.445756253e+10 | J197: 15396031 | K197: 939.0447788 | L197: BUY | M197: 0 | N197: 1 | O197: 961.6 | P197: 0
A198: 2013-10-07 | B198: 955.95 | C198: 997.7 | D198: 949.1 | E198: 992.85 | F198: 2675302 | G198: 979.8833333 | H198: 2621483841 | I198: 1.552173589e+10 | J198: 16386236 | K198: 947.2423007 | L198: BUY | M198: 0 | N198: 1 | O198: 961.6 | P198: 0
A199: 2013-10-08 | B199: 996.9 | C199: 1004 | D199: 982.35 | E199: 986.05 | F199: 1474543 | G199: 990.8 | H199: 1460977204 | I199: 1.348944019e+10 | J199: 14080317 | K199: 958.0352623 | L199: BUY | M199: 0 | N199: 1 | O199: 961.6 | P199: 0
A200: 2013-10-09 | B200: 999 | C200: 1011 | D200: 945 | E200: 950.3 | F200: 2858899 | G200: 968.7666667 | H200: 2769606055 | I200: 1.467934389e+10 | J200: 15276138 | K200: 960.9329196 | L200: SELL | M200: SELL | N200: -1 | O200: 950.3 | P200: -0.01175124792
... 1788 more rows
